[Event "44th Chess Olympiad Open 2022"]
[Site "Chennai"]
[Date "2022.08.08"]
[Round "10.19"]
[White "Sanchez, Sebastian Felipe"]
[Black "Thybo, Jesper Sondergaard"]
[Result "1/2-1/2"]
[ECO "E35"]
[WhiteElo "2440"]
[BlackElo "2520"]
[Annotator "TA"]
[PlyCount "123"]
[EventDate "2022.07.29"]
[EventType "team-tourn"]
[EventCountry "IND"]
[SourceTitle "playchess.com"]
[Source "ChessBase"]
[SourceQuality "1"]
[WhiteTeam "Colombia"]
[BlackTeam "Denmark"]
[WhiteTeamCountry "COL"]
[BlackTeamCountry "DEN"]
[TimeControl "40/5400+30:1800+30"]

{[%evp 13,123,16,27,10,36,37,40,25,23,0,0,0,0,0,0,0,0,-11,6,7,5,7,14,32,31,11,13,15,57,75,160,160,157,160,150,108,107,110,93,93,94,104,96,76,117,120,128,125,136,134,147,152,148,145,193,140,143,155,147,93,89,0,120,81,157,179,172,157,164,163,151,162,204,210,223,220,230,207,242,241,255,265,237,173,172,0,239,221,197,101,101,101,88,74,65,64,68,0,0,0,0,0,0,0,0,0,0,0,0,0,0,0]} 1. d4 {[%emt 0:00:03]} Nf6 {[%emt 0:00:18]} 2. c4 {[%emt 0:00:04]} e6 {[%emt 0:00:17]} 3. Nc3 {[%emt 0:00:23]} Bb4 {[%emt 0:00:10]} 4. Qc2 {[%emt 0:00:05]} d5 {[%emt 0:01:19]} 5. cxd5 {[%emt 0:00:07]} exd5 {[%emt 0:00:11]} 6. Bg5 {[%emt 0:00:09]} h6 {[%emt 0:00:21]} 7. Bh4 $1 {[%emt 0:00:05] 7.Bh4 is better than 7.Bxf6.} O-O {[%emt 0:00:22]} 8. e3 {[%emt 0:02:42] E35: Nimzo-Indian: Classical: 4...d5 5 cxd5 exd5.} Re8 {[%emt 0:01:38]} 9. Nf3 {[%emt 0:07:24]} c5 {[%emt 0:05:32]} 10. dxc5 {[%emt 0:01:46] White is slightly better.} Nbd7 {[%emt 0:00:15] [#]} 11. Bb5 $146 {[%emt 0:12:38]} ({Predecessor:} 11. Bd3 Nxc5 12. Bh7+ Kh8 13. O-O Be6 14. Nb5 Ncd7 15. Bd3 Rc8 16. Qd1 Qb6 17. a3 {½-½ (42) Haugen,A (2435)-Torgersen,T (2179) ICCF email 2017}) 11... Qa5 {[%emt 0:06:04]} 12. Nd4 {[%emt 0:03:30]} Ne4 {[%emt 0:08:28][%cal Re4c3]} 13. O-O {[%emt 0:01:13]} Bxc3 {[%emt 0:11:19]} 14. bxc3 {[%emt 0:00:03] aiming for c6.} a6 $1 {[%emt 0:00:57]} 15. Ba4 {[%emt 0:10:09]} Qxc5 {[%emt 0:01:59]} 16. Bb3 {[%emt 0:10:03]} Ne5 {[%emt 0:02:31]} 17. f3 {[%emt 0:01:42]} Nd6 {[%emt 0:04:11]} 18. Bf2 {[%emt 0:00:06]} Bd7 {[%emt 0:06:09]} 19. Rad1 {[%emt 0:02:57]} Nec4 {[%emt 0:05:34]} 20. Rfe1 {[%emt 0:05:06]} b5 {[%emt 0:03:53]} 21. Ne2 $1 {[%emt 0:14:37][%cal Bd4e2,Be2g3,Bg3f5][%mdl 32]} Nxe3 {[%emt 0:06:32]} (21... Qc6 $142) 22. Qd2 $1 $16 {[%emt 0:03:46]} Rac8 {[%emt 0:15:01]} 23. Ng3 $1 {[%emt 0:09:24][%cal Re1e3]} Ndc4 {[%emt 0:02:53]} 24. Bxc4 {[%emt 0:00:06]} Nxc4 {[%emt 0:00:58]} 25. Bxc5 {[%emt 0:00:14]} Nxd2 {[%emt 0:00:12]} 26. Rxe8+ {[%emt 0:00:05]} Bxe8 {[%emt 0:00:04]} 27. Bd4 $1 {[%emt 0:00:16]} Nc4 {[%emt 0:00:46]} 28. Nf5 {[%emt 0:00:04] Strongly threatening Ne7+.} Kh7 {[%emt 0:05:41]} 29. Nxg7 {[%emt 0:00:11]} f6 {[%emt 0:01:23]} 30. Bxf6 {[%emt 0:02:31]} (30. Nxe8 Rxe8 31. Bxf6 Re2 $14) 30... Bf7 {[%emt 0:00:21]} 31. Nf5 {[%emt 0:05:26]} Re8 {[%emt 0:06:16] [#] And now ...Kg6 would win.} 32. Ne7 {[%emt 0:00:06]} Nb6 {[%emt 0:00:20]} 33. Kf2 {[%emt 0:01:32]} a5 {[%emt 0:01:44]} (33... Nd7 $16 {keeps fighting.}) 34. Rd4 {[%emt 0:02:53]} (34. g4 $18) 34... Nd7 {[%emt 0:00:40]} 35. Bh4 {[%emt 0:00:06] White is more active.} (35. Nxd5 $6 Bxd5 36. Rxd5 Nxf6 37. Rxb5 a4 $11) 35... Nb6 {[%emt 0:00:15]} 36. Rg4 {[%emt 0:01:02]} (36. g4 $142) 36... Be6 {[%emt 0:00:59]} 37. Rd4 {[%emt 0:00:33]} ({Better is} 37. Rf4 $16) 37... Kg7 {[%emt 0:02:24]} (37... Bf7 $1 $11 {remains equal.}) 38. f4 {[%emt 0:01:22]} Kf7 {[%emt 0:00:23]} (38... Kf8 $142) 39. f5 {[%emt 0:00:11]} Bc8 {[%emt 0:00:45]} 40. Nxd5 {[%emt 0:01:00]} Nxd5 {[%emt 0:00:32]} 41. Rxd5 $18 {[%emt 0:30:02][%mdl 4096] Endgame KRB-KRB} Re4 {[%emt 0:30:40]} 42. g3 {[%emt 0:00:00][%cal Bg2g3,Bg3g4][%mdl 32]} (42. Rxb5 Rxh4 43. Rc5 Bd7 $15) 42... Rc4 {[%emt 0:00:00]} 43. Rxb5 {[%emt 0:00:00]} a4 {[%emt 0:00:00]} 44. Ra5 {[%emt 0:00:00]} Rxc3 {[%emt 0:00:00]} 45. Ra7+ {[%emt 0:00:00]} (45. Rxa4 $6 Rc2+ 46. Kf3 Bxf5 $16) 45... Kg8 {[%emt 0:00:00]} 46. g4 {[%emt 0:00:00]} (46. Rxa4 $6 Rc2+ 47. Ke3 Bxf5) 46... h5 {[%emt 0:00:00]} 47. f6 {[%emt 0:00:00]} ({But not} 47. Rxa4 $6 hxg4 48. Ra8 (48. Rxg4+ Kf7 $16) 48... Kh7 $16) ({Resist} 47. gxh5 $6 Bxf5 48. Rxa4 Rh3 49. Ra8+ Kf7 $18) 47... Rc2+ {[%emt 0:00:00]} 48. Kg1 {[%emt 0:06:10]} Rc1+ {[%emt 0:00:00] [#]} 49. Kf2 {[%emt 0:00:03]} (49. Kg2 $142 $1 {f7+ is the strong threat.} Rc2+ 50. Kg3 Bxg4 51. Rxa4) 49... Rc2+ $1 {[%emt 0:00:00]} 50. Ke3 {[%emt 0:00:43]} Bxg4 {[%emt 0:00:00]} 51. f7+ {[%emt 0:01:00]} (51. Bg5 $18 {f7+ would kill now.} Rc3+ 52. Ke4) 51... Kf8 $16 {[%emt 0:00:00]} 52. Bg5 {[%emt 0:01:07][%cal Rg5h6]} Rc6 {[%emt 0:00:00] Inhibits Bh6+.} (52... Re2+ $2 53. Kd4 Re6 54. Bc1 $18) 53. Ke4 {[%emt 0:00:02] Hoping for Bd2.} Re6+ {[%emt 0:00:00]} 54. Kd5 {[%emt 0:00:25]} Rg6 {[%emt 0:00:00]} 55. h4 {[%emt 0:01:22]} ({White should try} 55. Bf4 $14 Be6+ 56. Kc5 Bxf7 57. Rxa4) 55... Be6+ $11 {[%emt 0:00:00] The position is equal.} 56. Ke5 {[%emt 0:00:02] White wants to mate with Be7+.} Bxa2 {[%emt 0:00:00]} 57. Be7+ {[%emt 0:00:08]} Kxf7 {[%emt 0:00:00]} 58. Bf6+ {[%emt 0:00:02]} Kg8 {[%emt 0:00:00]} 59. Ra8+ {[%emt 0:00:18]} Kf7 {[%emt 0:00:00]} 60. Rxa4 {[%emt 0:00:06] Threatens to win with Ra7+.} Rxf6 {[%emt 0:00:00]} 61. Rxa2 {[%emt 0:00:20]} Rf3 {[%emt 0:00:00]} 62. Ke4 {[%emt 0:00:12] Black escapes into a draw.  Weighted Error Value: White=0.14 (very precise) /Black=0.11 (very precise)} 1/2-1/2

[Event "44th Chess Olympiad Open 2022"]
[Site "Chennai"]
[Date "2022.08.08"]
[Round "10.20"]
[White "Cheng, Bobby"]
[Black "Ashiku, Franc"]
[Result "1-0"]
[ECO "E71"]
[WhiteElo "2540"]
[BlackElo "2422"]
[Annotator "TA"]
[PlyCount "71"]
[EventDate "2022.07.29"]
[EventType "team-tourn"]
[EventCountry "IND"]
[SourceTitle "playchess.com"]
[Source "ChessBase"]
[SourceQuality "1"]
[WhiteTeam "Australia"]
[BlackTeam "Albania"]
[WhiteTeamCountry "AUS"]
[BlackTeamCountry "ALB"]
[TimeControl "40/5400+30:1800+30"]

{[%evp 11,71,34,53,9,29,1,7,5,23,-8,62,22,62,72,53,33,82,82,89,-25,39,0,0,-43,-35,-40,60,31,204,202,193,201,193,208,204,163,297,107,117,84,69,66,129,131,125,125,127,120,190,189,406,218,491,499,500,520,700,684,29966,29963,29991,29992]} 1. d4 {[%emt 0:00:03]} Nf6 {[%emt 0:00:14]} 2. c4 {[%emt 0:00:05]} g6 {[%emt 0:00:09]} 3. Nc3 {[%emt 0:00:06]} Bg7 {[%emt 0:00:04]} 4. e4 {[%emt 0:00:04][%cal Be2e4,Be4e5][%mdl 32]} d6 {[%emt 0:00:04]} 5. h3 {[%emt 0:00:04]} O-O {[%emt 0:01:04]} 6. Be3 {[%emt 0:00:06]} c6 {[%emt 0:00:21]} 7. g4 {[%emt 0:01:19] E71: King's Indian: 4 e4 d6 5 h3.} a6 {[%emt 0:00:51]} 8. f4 {[%emt 0:01:37]} (8. g5 $5 {[%cal Rg5f6]} Nh5 9. Be2 $11) 8... b5 $1 {[%emt 0:03:32]} 9. e5 {[%emt 0:00:19] The position is equal.} Nfd7 {[%emt 0:01:23]} 10. h4 {[%emt 0:01:21][%cal Bh3h4,Bh4h5][%mdl 32] [#]} b4 $146 {[%emt 0:08:36]} (10... Nb6 $11) ({Predecessor:} 10... Nb6 11. b3 Bb7 12. h5 c5 13. d5 e6 14. Bg2 dxe5 15. Bxc5 exf4 16. Nge2 Re8 17. hxg6 hxg6 {0-1 (27) Lamaze,S (2369)-Sadhwani,R (2619) Chess.com INT 2022}) 11. Nce2 {[%emt 0:07:35] White is more active.} (11. Na4 $5 {[%cal Rh4h5]}) 11... c5 {[%emt 0:02:30] Hoping for ...cxd4.} 12. Bg2 {[%emt 0:05:40] aiming for dxc5.} Ra7 {[%emt 0:00:50]} 13. h5 {[%emt 0:06:02]} cxd4 {[%emt 0:21:53]} (13... Rc7 $1 $14 {was preferrable.}) 14. Bxd4 $16 {[%emt 0:08:47]} Nc5 {[%emt 0:03:11]} 15. Ng3 {[%emt 0:08:33]} (15. hxg6 $1 $16 fxg6 16. Nh3 (16. exd6 Qxd6 17. Bxg7 Kxg7 $15)) 15... Rd7 {[%emt 0:02:08]} (15... Rc7 $11) 16. Bxc5 {[%emt 0:01:20]} (16. e6 $5 Nxe6 17. Bxg7 Nxg7 18. hxg6 fxg6 19. Qd2 $14) 16... dxc5 {[%emt 0:00:10]} 17. Qe2 {[%emt 0:00:06]} (17. Qc2 $5 {[%cal Rg2e4]}) 17... Qc7 {[%emt 0:17:51]} 18. Be4 {[%emt 0:10:06] And now Qh2 would win.} Rfd8 {[%emt 0:04:00]} (18... Nc6 $15) 19. Nf3 $14 {[%emt 0:00:03]} Bb7 $2 {[%emt 0:06:38]} (19... Nc6 $14) 20. Bxb7 {[%emt 0:06:30]} Qxb7 {[%emt 0:00:20] [#]} 21. e6 $1 {[%emt 0:00:05]} Rd3 {[%emt 0:02:36]} 22. exf7+ {[%emt 0:00:39]} Kxf7 {[%emt 0:00:59]} 23. hxg6+ {[%emt 0:01:39]} hxg6 {[%emt 0:01:34] [#]} 24. Ng5+ {[%emt 0:15:11]} (24. Ne4 $1 $18 {and the rest is easy.} Kg8 25. Nfg5) 24... Ke8 $16 {[%emt 0:00:05]} 25. Ne6 {[%emt 0:00:05][%csl LRc5,LRd8,LRg7]} (25. Qe6 R8d6 26. Qe4 Qd7 $17) 25... Bxb2 {[%emt 0:00:14]} (25... Rxg3 26. Nxg7+ Kf7 27. Qe6+ Kf8 28. Rh8+ Kxg7 29. Qe5+ (29. Rxd8 $2 {is the wrong capture.} Qh1+ 30. Kd2 Rg2+ 31. Kd3 Qh3+ 32. Qe3 Rg3 $19) 29... Kf7 30. Rh7+ (30. Rxd8 $2 {too greedy.} Qh1+ 31. Kd2 Rg2+ 32. Kd3 Qh3+ 33. Qe3 Rg3 $19) 30... Ke8 31. Qh8+ Kd7 32. O-O-O+ Kc6 33. Qxd8 $18) 26. Nxd8 {[%emt 0:01:24] Really sharp! Pair of Knights!} Bc3+ {[%emt 0:05:37]} ({Black should play} 26... Qf3 $1 $14 27. Qxf3 (27. Qxb2 $2 Qxg3+ 28. Qf2 Re3+ 29. Kf1 Rf3 $19) 27... Rxf3) 27. Kf1 {[%emt 0:00:01]} Rxd8 {[%emt 0:02:15]} 28. Rd1 $36 {[%emt 0:00:32][%mdl 2048] White is on the roll.} Rxd1+ {[%emt 0:05:25]} 29. Qxd1 {[%emt 0:00:05]} Qc7 {[%emt 0:00:41]} (29... Nd7 $16 {is a better defense.}) 30. Qf3 $18 {[%emt 0:02:09] Rh6 is the strong threat.} Nc6 $2 {[%emt 0:00:37]} (30... Qc6 {was necessary.} 31. Kg2 Qxf3+ 32. Kxf3 Nd7) 31. Kg2 {[%emt 0:03:42]} (31. Rh6 $142) 31... Qd6 $2 {[%emt 0:01:13]} (31... Nd8 32. Rh3 Qd7) 32. Ne4 $1 {[%emt 0:00:56][%csl LRc3,LRd6]} Qe6 {[%emt 0:03:38]} 33. Nxc5 {[%emt 0:00:41]} Qc8 {[%emt 0:01:50]} 34. f5 {[%emt 0:03:12]} Bg7 {[%emt 0:01:19]} 35. Qd5 {[%emt 0:02:49]} Ne5 {[%emt 0:01:46] [#]} 36. Rh8+ $3 {[%emt 0:01:08][%mdl 512] Weighted Error Value: White=0.30/Black=0.75} 1-0

[Event "44th Chess Olympiad Open 2022"]
[Site "Chennai"]
[Date "2022.08.08"]
[Round "10.20"]
[White "Zhao, Zong-Yuan"]
[Black "Veleshnja, Zino"]
[Result "1-0"]
[ECO "B37"]
[WhiteElo "2513"]
[BlackElo "2263"]
[Annotator "TA"]
[PlyCount "71"]
[EventDate "2022.07.29"]
[EventType "team-tourn"]
[EventCountry "IND"]
[SourceTitle "playchess.com"]
[Source "ChessBase"]
[SourceQuality "1"]
[WhiteTeam "Australia"]
[BlackTeam "Albania"]
[WhiteTeamCountry "AUS"]
[BlackTeamCountry "ALB"]
[TimeControl "40/5400+30:1800+30"]

{[%evp 18,71,44,37,36,24,39,27,73,61,65,77,86,87,89,97,139,108,139,94,157,111,114,107,170,145,135,144,347,298,420,381,386,396,375,322,350,360,463,410,460,439,516,533,557,547,513,366,352,362,1276,1273,1237,1178,5257,2972]} 1. c4 {[%emt 0:00:02]} Nf6 {[%emt 0:00:08]} 2. Nc3 {[%emt 0:00:05]} c5 {[%emt 0:01:28]} 3. Nf3 {[%emt 0:00:12]} g6 {[%emt 0:00:24]} 4. d4 {[%emt 0:00:18]} cxd4 {[%emt 0:00:23]} 5. Nxd4 {[%emt 0:00:02]} Bg7 {[%emt 0:00:29]} 6. e4 {[%emt 0:00:05]} Nc6 {[%emt 0:01:03]} 7. Nc2 {[%emt 0:01:41]} d6 {[%emt 0:00:17]} 8. Be2 {[%emt 0:00:04]} O-O {[%emt 0:00:34]} 9. O-O {[%emt 0:00:04]} Be6 {[%emt 0:01:53]} 10. Be3 {[%emt 0:03:16]} Nd7 {[%emt 0:05:26] B37: Sicilian: Maroczy Bind with 5...Bg7, sidelines.} 11. Qd2 {[%emt 0:01:53]} Nc5 {[%emt 0:07:25]} 12. Bh6 {[%emt 0:04:55]} a5 {[%emt 0:06:15]} (12... Bxh6 $1 $11 {is more appropriate.} 13. Qxh6 a5) 13. Bxg7 $16 {[%emt 0:02:37]} Kxg7 {[%emt 0:00:05]} 14. f4 {[%emt 0:01:38]} f5 {[%emt 0:11:57]} 15. exf5 {[%emt 0:02:17]} Bxf5 {[%emt 0:01:15] [#]} 16. Nd4 $146 {[%emt 0:25:10]} ({Predecessor:} 16. Ne3 Be6 17. Kh1 a4 18. Rae1 Qa5 19. Bg4 Bxg4 20. Nxg4 a3 21. b3 Rf7 22. f5 {½-½ (45) Malisauskas,V (2489)-Adamowicz,M (1847) Koszalin 2009}) 16... Ne6 {[%emt 0:08:45] [#] Strongly threatening ...Qb6.} 17. Ndb5 {[%emt 0:21:41] White is more active.} Qb6+ {[%emt 0:06:17]} 18. Kh1 {[%emt 0:00:04] Threatens to win with g4.} h5 {[%emt 0:08:57] Inhibits g4.} (18... Nc5 $142) 19. Na4 {[%emt 0:03:29]} ({Better is} 19. Nd5 Qd8 20. Bd3) 19... Qd8 {[%emt 0:02:52]} 20. Rad1 {[%emt 0:00:06]} Nb4 {[%emt 0:06:03]} (20... Rf6 $16) 21. b3 {[%emt 0:03:31]} Qe8 {[%emt 0:03:35]} 22. Bf3 {[%emt 0:05:13]} Bg4 $2 {[%emt 0:05:15] This move loses the game for Black.} (22... Rd8 $16 {is a better defense.} 23. a3 (23. Bxb7 d5 $14) 23... Nc6) 23. a3 {[%emt 0:09:49]} Na6 {[%emt 0:01:59]} (23... Nc6 $142 24. Bxg4 hxg4) 24. Bxg4 {[%emt 0:00:51]} hxg4 {[%emt 0:00:06]} 25. Nb6 {[%emt 0:00:04]} Rd8 {[%emt 0:01:58]} 26. Qc3+ {[%emt 0:00:29]} Kh7 {[%emt 0:04:08]} 27. Qg3 {[%emt 0:00:21] [#] aiming for Rde1.} ({Weaker is} 27. Qxa5 Nxf4 28. Qd2 e5 $16) 27... Rf5 {[%emt 0:00:27]} 28. Qxg4 {[%emt 0:01:19]} Qf7 {[%emt 0:00:23]} 29. Nd5 {[%emt 0:00:10] Prevents Nac7.} ({Less strong is} 29. Nd4 Nxd4 30. Rxd4 Nc7 $18) 29... Kg7 {[%emt 0:02:27]} 30. Rde1 {[%emt 0:04:31]} Re8 {[%emt 0:03:36]} 31. Re3 {[%emt 0:03:36]} Nac5 {[%emt 0:00:26]} 32. Rfe1 {[%emt 0:00:20]} Nxf4 {[%emt 0:02:05]} 33. Rxe7 {[%emt 0:04:26]} Nxd5 $2 {[%emt 0:05:45]} (33... Ncd3) 34. Rxf7+ $18 {[%emt 0:01:02] White is clearly winning.} Rxf7 {[%emt 0:00:16]} 35. Qd4+ {[%emt 0:00:32]} Re5 {[%emt 0:02:01]} 36. Nxd6 {[%emt 0:00:43] Weighted Error Value: White=0.20 (precise) /Black=0.40} 1-0

[Event "44th Chess Olympiad Open 2022"]
[Site "Chennai"]
[Date "2022.08.08"]
[Round "10.20"]
[White "Pasko, Llambi"]
[Black "Smirnov, Anton"]
[Result "1/2-1/2"]
[ECO "D27"]
[WhiteElo "2418"]
[BlackElo "2600"]
[Annotator "TA"]
[PlyCount "88"]
[EventDate "2022.07.29"]
[EventType "team-tourn"]
[EventCountry "IND"]
[SourceTitle "playchess.com"]
[Source "ChessBase"]
[SourceQuality "1"]
[WhiteTeam "Albania"]
[BlackTeam "Australia"]
[WhiteTeamCountry "ALB"]
[BlackTeamCountry "AUS"]
[TimeControl "40/5400+30:1800+30"]

{[%evp 18,88,-2,0,0,-11,-15,-20,-29,-33,-31,-27,-20,-19,-22,-27,-20,-32,0,0,17,-14,-10,-12,0,-6,-12,-7,0,-48,-54,-58,-64,-56,-43,-64,-70,-79,-70,-66,-57,-103,-98,-98,-99,-99,-97,-98,-98,-96,-57,-72,-57,-57,0,0,0,0,0,0,0,0,0,0,0,0,0,0,0,0,0,0,0]} 1. d4 {[%emt 0:00:03]} Nf6 {[%emt 0:00:12]} 2. c4 {[%emt 0:00:14]} e6 {[%emt 0:00:04]} 3. Nf3 {[%emt 0:00:20]} d5 {[%emt 0:00:06]} 4. Nc3 {[%emt 0:00:05]} Nbd7 {[%emt 0:00:06]} 5. e3 {[%emt 0:02:52]} a6 {[%emt 0:01:20]} 6. a3 {[%emt 0:02:24]} dxc4 {[%emt 0:11:05]} 7. Bxc4 {[%emt 0:00:16]} b5 {[%emt 0:00:04]} 8. Ba2 {[%emt 0:00:49]} c5 {[%emt 0:03:22]} 9. O-O {[%emt 0:01:38]} Bb7 {[%emt 0:03:04]} 10. Qe2 {[%emt 0:02:55]} Bd6 {[%emt 0:09:58] D27: Queen's Gambit Accepted: Classical main line: 7 e4!? and 7 a4.} 11. Rd1 {[%emt 0:08:52]} Qc7 {[%emt 0:03:44]} 12. h3 {[%emt 0:06:56]} O-O {[%emt 0:01:52]} 13. dxc5 {[%emt 0:12:49] [#]} Bxc5 $146 {[%emt 0:10:03]} ({Predecessor:} 13... Nxc5 14. b4 Nce4 15. Nxe4 Nxe4 16. Bb2 Nc3 17. Bxc3 Qxc3 18. Qd3 Qxd3 {½-½ (18) Bellon Lopez,J (2421)-Borges Matos,J (2475) Mislata 2000}) 14. e4 {[%emt 0:05:54]} b4 {[%emt 0:03:50]} 15. axb4 {[%emt 0:00:11]} Bxb4 {[%emt 0:00:02]} 16. Bd2 {[%emt 0:01:09]} Bxc3 {[%emt 0:09:07]} 17. Bxc3 {[%emt 0:00:04]} Bxe4 {[%emt 0:02:40]} 18. Ng5 {[%emt 0:12:46]} Bg6 {[%emt 0:06:58]} 19. Bc4 {[%emt 0:09:24][%cal Oc4e6]} h6 {[%emt 0:02:29]} 20. Nf3 {[%emt 0:00:38]} a5 {[%emt 0:01:34]} 21. Ne5 {[%emt 0:04:38]} Nxe5 {[%emt 0:02:28]} 22. Bxe5 {[%emt 0:00:03] This bishop pair is nice.} Qb7 {[%emt 0:00:28]} 23. Bxf6 {[%emt 0:00:41]} (23. b3 $11) 23... gxf6 $15 {[%emt 0:00:11]} 24. Bd3 {[%emt 0:00:12]} Bxd3 {[%emt 0:04:27]} 25. Rxd3 {[%emt 0:00:14]} Kh7 $1 {[%emt 0:00:08]} 26. Qc2 {[%emt 0:09:13]} f5 {[%emt 0:00:40]} 27. Rb3 {[%emt 0:00:15]} Qd5 {[%emt 0:03:38]} 28. Rd1 {[%emt 0:03:08][%cal Ba1d1,Bd1d7,Bd7b7,Bb7b3][%mdl 32]} Qe5 {[%emt 0:00:46]} 29. Rb7 {[%emt 0:02:08]} (29. Re3 $15 Qf6 30. Rd7) 29... Rab8 {[%emt 0:00:35]} 30. Rdd7 {[%emt 0:00:52]} Rxb7 {[%emt 0:01:45]} 31. Rxb7 $17 {[%emt 0:00:03][%mdl 4096] Endgame KQR-KQR} Kg7 {[%emt 0:00:10]} 32. Rb3 {[%emt 0:05:39]} Rd8 {[%emt 0:01:58]} 33. Re3 {[%emt 0:00:23] Against Qe1+} Qf6 {[%emt 0:01:53]} 34. Qc7 {[%emt 0:03:49]} a4 {[%emt 0:02:52]} 35. Kh2 {[%emt 0:01:18]} h5 {[%emt 0:01:58]} (35... Rd4 $15) 36. Rxe6 $11 {[%emt 0:01:29] The position is equal.} Qxe6 {[%emt 0:00:08]} 37. Qxd8 {[%emt 0:00:03] KQ-KQ} Qe5+ {[%emt 0:00:07]} 38. Kh1 {[%emt 0:00:18]} Qxb2 {[%emt 0:02:33] [#] Strongly threatening ...Qa1+.} 39. Qg5+ {[%emt 0:00:06]} Kf8 {[%emt 0:01:17]} 40. Qd8+ {[%emt 0:00:04]} Kg7 {[%emt 0:00:04] aiming for ...Qa1+.} 41. Qg5+ {[%emt 0:30:03]} Kh8 {[%emt 0:11:55]} 42. Qxh5+ {[%emt 0:00:00]} Kg8 {[%emt 0:00:02] [#] ...Qc1+ is the strong threat.} 43. Qg5+ {[%emt 0:00:00]} Qg7 {[%emt 0:00:07]} 44. Qd8+ {[%emt 0:00:00]} Qf8 {[%emt 0:01:36] Weighted Error Value: White=0.07 (flawless) /Black=0.06 (flawless)} 1/2-1/2

[Event "44th Chess Olympiad Open 2022"]
[Site "Chennai"]
[Date "2022.08.08"]
[Round "10.20"]
[White "Mehmeti, Dritan"]
[Black "Tan, Justin"]
[Result "0-1"]
[ECO "C54"]
[WhiteElo "2371"]
[BlackElo "2508"]
[Annotator "TA"]
[PlyCount "72"]
[EventDate "2022.07.29"]
[EventType "team-tourn"]
[EventCountry "IND"]
[SourceTitle "playchess.com"]
[Source "ChessBase"]
[SourceQuality "1"]
[WhiteTeam "Albania"]
[BlackTeam "Australia"]
[WhiteTeamCountry "ALB"]
[BlackTeamCountry "AUS"]
[TimeControl "40/5400+30:1800+30"]

{[%evp 14,72,10,8,10,0,29,0,0,0,0,0,0,0,14,12,16,-4,14,20,14,-42,9,-20,0,-37,-43,-41,-42,-45,-33,-41,-27,-61,-50,-47,-48,-53,-59,-66,-34,-35,-34,-87,-72,-100,-61,-58,-44,-113,-86,-81,-61,-54,-50,-400,-389,-377,-366,-795,-765]} 1. e4 {[%emt 0:00:55]} e5 {[%emt 0:02:17]} 2. Nf3 {[%emt 0:00:16]} Nc6 {[%emt 0:00:04]} 3. Bc4 {[%emt 0:00:25]} Bc5 {[%emt 0:01:10]} 4. O-O {[%emt 0:00:19]} Nf6 {[%emt 0:00:08]} 5. d3 {[%emt 0:00:42]} d6 {[%emt 0:01:06]} 6. c3 {[%emt 0:01:34]} O-O {[%emt 0:01:10]} 7. h3 {[%emt 0:00:36]} h6 {[%emt 0:00:07]} 8. Re1 {[%emt 0:00:49]} a5 {[%emt 0:01:53] 8...Bb6 is setting a new trend. C54: Giuoco Piano: 4 c3 Nf6, main lines with 5 d4 and 5 d3.} 9. Nbd2 {[%emt 0:01:56]} Be6 {[%emt 0:00:13]} 10. Bb5 {[%emt 0:02:20]} Qb8 {[%emt 0:00:21] The position is equal.} 11. Nf1 {[%emt 0:00:53]} Qa7 {[%emt 0:00:26]} 12. Re2 {[%emt 0:03:40]} a4 {[%emt 0:05:00]} 13. Ng3 {[%emt 0:09:36]} Qa5 {[%emt 0:02:49]} 14. Bxc6 {[%emt 0:07:40]} bxc6 {[%emt 0:00:03]} 15. d4 {[%emt 0:00:57] [#]} Ba7 $146 {[%emt 0:07:12]} ({Predecessor:} 15... Bb6 16. Be3 Rfe8 17. Qd2 exd4 18. Bxh6 dxc3 19. bxc3 Nh5 20. Bf4 f6 21. Nxh5 Qxh5 {½-½ (47) Bogner,S (2588)-Anton Guijarro,D (2647) Batumi 2018}) 16. Be3 {[%emt 0:03:42]} Rfe8 {[%emt 0:06:25]} 17. Qd2 {[%emt 0:04:52]} (17. Qc1 $11) 17... Kh7 {[%emt 0:02:47]} (17... exd4 $1 $15 18. Bxd4 Nd7) 18. a3 {[%emt 0:08:36]} Rab8 {[%emt 0:08:37]} 19. dxe5 {[%emt 0:04:48]} (19. Qd3 $5 {[%cal Rd4e5]}) 19... Bxe3 {[%emt 0:02:52]} 20. Qxe3 {[%emt 0:00:14]} dxe5 {[%emt 0:00:07]} 21. Rd1 {[%emt 0:00:21]} Qb6 {[%emt 0:11:25]} 22. Qc1 {[%emt 0:03:14]} ({Don't go for} 22. Nxe5 $2 Bb3 23. Rd4 (23. Qxb6 $2 Rxb6 24. Rd7 Rb7 $19) 23... Rxe5 $19) 22... Qc5 {[%emt 0:01:27]} 23. Nh4 {[%emt 0:06:31]} Rb5 {[%emt 0:02:58]} 24. Nhf5 {[%emt 0:00:23]} Reb8 {[%emt 0:00:43] Strongly threatening ...Qb6.} 25. Ne3 {[%emt 0:03:02]} g6 {[%emt 0:08:43]} 26. Kh2 {[%emt 0:01:08]} Ne8 {[%emt 0:01:20]} 27. f3 {[%emt 0:06:07]} Qe7 {[%emt 0:01:29]} 28. Rdd2 {[%emt 0:02:43]} (28. Ng4 $15) 28... Nd6 $17 {[%emt 0:00:56]} 29. Qd1 {[%emt 0:01:30]} Bb3 {[%emt 0:02:52]} 30. Qe1 {[%emt 0:01:24]} Qg5 {[%emt 0:06:14]} 31. Nh1 {[%emt 0:03:58]} (31. Qf2 $1 $15) 31... Be6 {[%emt 0:01:15] Black is more active.} 32. g3 {[%emt 0:03:50][%cal Bg2g3,Bg3g4][%mdl 32]} Qh5 {[%emt 0:02:07]} 33. g4 $1 {[%emt 0:03:00]} Qg5 $36 {[%emt 0:00:01][%mdl 2048] Black has some pressure.} 34. Qg3 $2 {[%emt 0:00:18][%mdl 8192]} (34. Kg1 $15) 34... Bc4 $19 {[%emt 0:03:01]} 35. Nxc4 {[%emt 0:06:27]} Nxc4 {[%emt 0:00:01]} 36. h4 $2 {[%emt 0:01:57] [#]} (36. Rc2 Ne3 37. Qf2 Nxc2 38. Rxc2) 36... Nxd2 $1 {[%emt 0:00:53] Weighted Error Value: White=0.50/Black=0.11 (very precise)} 0-1